[Event "45th FIDE Olympiad 2024"]
[Site "Budapest"]
[Date "2024.09.11"]
[Round "1.169"]
[White "Al Maashani, Amer"]
[Black "Haring, Filip"]
[Result "0-1"]
[ECO "E46"]
[WhiteElo "1979"]
[BlackElo "2503"]
[Annotator "TA"]
[PlyCount "90"]
[EventDate "2024.09.05"]
[EventType "team-tourn"]
[EventCountry "HUN"]
[SourceTitle "playchess.com"]
[Source "ChessBase"]
[SourceQuality "1"]
[WhiteTeam "Oman"]
[BlackTeam "Slovakia"]
[WhiteTeamCountry "OMN"]
[BlackTeamCountry "SVK"]
[TimeControl "40/5400+30:1800+30"]

{[%evp 9,90,-6,0,2,10,-5,1,-16,-10,-8,-14,-32,-10,-16,-18,-44,-35,-39,-36,-37,-29,-34,-34,-31,-25,-44,0,-76,-83,-72,-68,-68,-69,-72,-56,-115,-114,-142,-131,-138,-126,-147,-134,-196,-191,-167,-201,-457,-350,-368,-338,-297,-246,-339,-350,-357,-365,-365,-347,-371,-254,-426,-290,-421,-400,-512,-409,-520,-382,-463,-463,-562,-557,-558,-577,-743,-736,-980,-998,-969,-968,-821,-806]} 1. d4 Nf6 2. c4 e6 3. Nc3 Bb4 {[%cal Bf8b4,Bb4a5,Ba5c7][%mdl 32]} 4. e3 O-O 5. Nge2 c6 6. a3 Ba5 7. b4 Bc7 8. Ng3 {The position is equal.} d5 9. f4 a5 {Threatens to win with ...axb4.} 10. Rb1 axb4 11. axb4 Nbd7 {[%cal Bb8d7,Bd7b6,Bb6d5][%mdl 32]} 12. Bd3 dxc4 13. Bxc4 Nd5 14. Bd2 N7b6 15. Bd3 Nxc3 16. Bxc3 Nd5 17. Qc1 c5 18. O-O (18. bxc5 $2 Nxc3 19. Qxc3 Ba5 $17) (18. dxc5 $11 {keeps the balance.} Nxf4 19. Bxh7+ Kxh7 20. exf4) 18... Nxc3 $17 19. Qxc3 cxd4 20. exd4 Bb6 21. Ne2 Bd7 22. Kh1 {Black keeps a firm grip on the game.} (22. b5 $15) 22... Bc6 23. Rbd1 Qd5 $36 {[%csl Gc6][%cal Rd5g2][%mdl 2048] [#] Keeping White busy.} 24. Rf3 Rfd8 {[%cal Og7g6]} 25. Rg3 g6 {[%cal Rb6d4]} (25... Bxd4 $2 {perishes.} 26. Bxh7+ (26. Nxd4 g6 $18) 26... Kf8 (26... Kxh7 $2 27. Rxd4 f6 28. Rxd5 $18) 27. Rxd4 $18) 26. b5 (26. Bc4 $17 Qd7 27. h3) 26... Bxb5 $19 {This pair of bishops is nice.} 27. Rg5 f5 {[%cal Rb6d4]} 28. h4 $2 (28. Bxb5 Qxb5 29. Qe3) 28... Rdc8 29. Qb4 Bxd3 30. Rxd3 Bd8 31. Nc3 Qc4 32. Qxc4 Rxc4 33. Rgg3 Bxh4 34. Rge3 Bf6 35. Nb5 $2 (35. Ne2) 35... Ra6 36. d5 (36. Kh2 $142) 36... exd5 (36... Rxf4 37. Rxe6 Re4 38. Rxa6 bxa6 39. Nc3 Rh4+ 40. Kg1 $19) 37. Rxd5 Rxf4 {[#] ...Ra1+ would now be deadly.} 38. g3 Rf2 39. Kg1 Rc2 {Black is clearly winning.} 40. Re1 Kg7 41. Nd6 Kh6 42. Nf7+ Kh5 43. Rf1 Raa2 {( -> ...Rg2+)} 44. Rfd1 Rg2+ 45. Kh1 Kg4 {Weighted Error Value: White=0.56/Black=0.20 (precise) .  Mistake:       	White=6     	---        Inaccurate:     	White=3     	Black=3      OK:         	White=5     	Black=20     Best:        	---       	Black=5} 0-1

[Event "45th FIDE Olympiad 2024"]
[Site "Budapest"]
[Date "2024.09.11"]
[Round "1.170"]
[White "Sahidi, Samir"]
[Black "Salim Mohammed, Salim Al Amri"]
[Result "1-0"]
[ECO "E91"]
[WhiteElo "2474"]
[BlackElo "1926"]
[Annotator "TA"]
[PlyCount "81"]
[EventDate "2024.09.05"]
[EventType "team-tourn"]
[EventCountry "HUN"]
[SourceTitle "playchess.com"]
[Source "ChessBase"]
[SourceQuality "1"]
[WhiteTeam "Slovakia"]
[BlackTeam "Oman"]
[WhiteTeamCountry "SVK"]
[BlackTeamCountry "OMN"]
[TimeControl "40/5400+30:1800+30"]

{[%evp 16,81,71,64,62,51,80,61,58,31,43,11,45,55,56,73,86,78,109,96,119,124,135,70,110,106,116,111,163,160,157,150,218,222,209,222,208,193,207,211,218,188,243,234,403,392,445,425,582,609,576,584,885,883,962,932,2118,2045,1752,2489,3126,2902,4833,5268,29982,10314,6233,3599]} 1. d4 Nf6 2. c4 g6 3. Nc3 Bg7 4. e4 d6 5. Nf3 O-O 6. Be2 e5 7. O-O Nc6 8. d5 Nb8 9. Ne1 a5 10. Nd3 Na6 11. Bg5 {[%cal Bc1g5,Bg5h4,Bh4g3,Bg3f2][%mdl 32]} h6 {White is slightly better.} 12. Bh4 Qe8 13. a3 g5 (13... Nxe4 $5 14. Nxe4 f5 $14) 14. Bg3 a4 15. f3 (15. Qxa4 $2 Qxa4 16. Nxa4 Nxe4 $17) 15... Bd7 16. Bf2 b6 {[#]} 17. Nb5 $1 {[%mdl 512]} Bxb5 (17... Nh5 18. Qxa4) 18. cxb5 Nc5 19. Nb4 ({Better is} 19. Nxc5 $16 dxc5 20. d6) 19... Nfd7 20. Rc1 {White is more active.} f5 21. Na6 Nxa6 (21... Qd8 $16) 22. bxa6 $18 Nc5 23. Rc4 Nxa6 (23... fxe4 $16 24. fxe4 (24. Bxc5 exf3 25. Rxf3 bxc5 $16) 24... Nxa6 (24... Rxa6 $2 25. Rxc5 bxc5 26. Bxa6 $18)) 24. Rxa4 (24. Qxa4 $2 b5 25. Qd1 bxc4 $19) 24... Nc5 25. Rxa8 Qxa8 26. b4 Nd7 {[#]} 27. a4 $1 {[%cal Ba3a4,Ba4a5,Ba5a6][%mdl 32]} Nf6 28. Qc2 fxe4 (28... Kh8 $142 29. Kh1 (29. Qxc7 fxe4 30. Bb5 exf3 $16) 29... g4 30. exf5 (30. Qxc7 gxf3 31. gxf3 Qxa4 $11) 30... h5 31. Qxc7 Qxa4) 29. fxe4 ({Worse is} 29. Qxc7 Qxa4 30. Qxd6 Qa2 $11) 29... Rf7 $2 {Black is weak on the light squares} (29... Kh8 {was necessary.} 30. Ra1 (30. Qxc7 Qxa4 31. Qc4 b5 $14) 30... Rc8) 30. Ra1 h5 {[%cal Bh6h5,Bh5h4][%mdl 32]} 31. a5 h4 32. a6 (32. axb6 $2 {is the wrong capture.} Qxa1+ 33. Bf1 cxb6 $19) 32... Qa7 33. h3 Nd7 {[%cal Bf6d7,Bd7f8,Bf8g6,Bg6f4,Bf4e2][%mdl 32]} 34. Bg4 Nf8 35. b5 Ng6 36. Be6 Nf4 37. Bxf7+ Kxf7 38. Qc6 Ne2+ 39. Kf1 Nd4 40. Qb7 Nxb5 41. Rb1 {Weighted Error Value: White=0.10 (very precise) /Black=0.58.  Mistake:       	White=1     	Black=4      Inaccurate:     	White=2     	Black=5      OK:         	White=11    	Black=9      Best:        	White=3     	Black=1      Brilliant:      	White=1     	---} 1-0

[Event "45th FIDE Olympiad 2024"]
[Site "Budapest"]
[Date "2024.09.11"]
[Round "1.171"]
[White "Al Maashani, Abdullah"]
[Black "Druska, Juraj"]
[Result "0-1"]
[ECO "B76"]
[WhiteElo "1893"]
[BlackElo "2441"]
[Annotator "TA"]
[PlyCount "62"]
[EventDate "2024.09.05"]
[EventType "team-tourn"]
[EventCountry "HUN"]
[SourceTitle "playchess.com"]
[Source "ChessBase"]
[SourceQuality "1"]
[WhiteTeam "Oman"]
[BlackTeam "Slovakia"]
[WhiteTeamCountry "OMN"]
[BlackTeamCountry "SVK"]
[TimeControl "40/5400+30:1800+30"]

{[%evp 21,62,-119,-89,-164,-179,-172,-141,-165,-168,-237,-202,-505,-500,-500,-518,-492,-364,-375,-382,-393,-288,-302,-310,-453,-358,-345,-355,-29984,-29985,-29985,-29986,-29991,-29992,-29992,-29993,-29994,-29993,-29993,-29994,-29997,-29993,-29993,-983]} 1. e4 c5 2. Nf3 Nc6 3. d4 cxd4 4. Nxd4 g6 5. Nc3 Bg7 6. Be3 Nf6 7. f3 O-O 8. Qd2 d5 9. O-O-O dxe4 10. Qf2 Qa5 11. Nb3 Qc7 12. Qh4 (12. Nxe4 $17 {was the only defense.} Nxe4 13. fxe4) 12... exf3 $19 13. gxf3 Bf5 14. Nb5 {Black is clearly better.} Qc8 {[%cal Oc6b4] [#] ...Nb4! is the strong threat.} 15. Bd3 (15. Nc3 {is a better defense.}) 15... Rd8 16. N5d4 $2 (16. Bxf5 {is tougher.} Rxd1+ (16... gxf5 17. Rxd8+ Qxd8 18. Rd1 $11) (16... Qxf5 $2 17. N5d4 $19) 17. Rxd1 Qxf5 (17... gxf5 18. Bh6 $11) 18. N5d4 Nxd4 19. Nxd4) 16... Bxd3 17. Rxd3 Nb4 {[%csl LRa2,LRd3]} 18. Rd2 Nxa2+ 19. Kb1 Nb4 20. Rhd1 Rd5 {Prevents Nf5. And now ...a5 would win.} 21. Ne2 Nxc2 22. Bg5 (22. Bc5 {might work better.} Qf5 (22... Rxc5 $2 23. Rd8+ Qxd8 24. Rxd8+ Rxd8 25. Nxc5 $19) 23. Rxd5 Nxd5 24. Qe4) 22... Qf5 {Threatens to win with ...Nb4+.} 23. Rxd5 Nxd5 24. Ng3 $2 {[#]} (24. Qe4 $19 Ncb4 25. Qxf5 gxf5 26. Nc5) 24... Na3+ {Black mates.} 25. Ka2 Qc2 {[%csl Gg7][%cal Rc2b2]} 26. Rd2 Nc3+ 27. Kxa3 Nb1+ 28. Kb4 Nxd2 29. Bxd2 a5+ 30. Ka3 Qxb2+ 31. Ka4 Qa2+ {Weighted Error Value: White=0.62/Black=0.23 (precise) .  Mistake:       	White=4     	---        OK:         	White=5     	Black=6      Best:        	White=1     	Black=2} (31... b5+ $142 32. Kxb5 Qxb3+ 33. Qb4 Qd5+ (33... axb4 {leads to mate.} 34. Ne4 Qd5+ 35. Nc5 Rb8+ 36. Ka5 Qxc5+ 37. Ka4 Qc2+ 38. Ka5 Qa2#) 34. Qc5 Rb8+ (34... Qxd2 {gets mated.} 35. Ne4 Qb2+ 36. Kc4 Qc2+ 37. Nc3 Qxc3+ 38. Kd5 Rd8+ 39. Kc6 Rc8+ 40. Kb7 Qxc5 41. f4 Rc7+ 42. Kb8 Qa7#) 35. Ka6 Qb7+ (35... Qxc5 $2 36. Bxa5 Qb5+ 37. Ka7 Qb7#) 36. Kxa5 Ra8+ 37. Qa7 Rxa7#) 0-1

[Event "45th FIDE Olympiad 2024"]
[Site "Budapest"]
[Date "2024.09.11"]
[Round "1.172"]
[White "Kostolansky, Sebastian Lukas"]
[Black "Al Busaidi, Hamood"]
[Result "1/2-1/2"]
[ECO "B12"]
[WhiteElo "2405"]
[BlackElo "1881"]
[Annotator "ChessBase"]
[PlyCount "82"]
[EventDate "2024.09.05"]
[EventType "team-tourn"]
[EventCountry "HUN"]
[SourceTitle "playchess.com"]
[Source "ChessBase"]
[SourceQuality "1"]
[WhiteTeam "Slovakia"]
[BlackTeam "Oman"]
[WhiteTeamCountry "SVK"]
[BlackTeamCountry "OMN"]
[TimeControl "40/5400+30:1800+30"]

1. e4 c6 2. d4 d5 3. e5 Bf5 4. h4 h5 5. Bd3 Bxd3 6. Qxd3 e6 7. Bg5 Qa5+ 8. Nd2 Qa6 9. c4 Ne7 10. Ngf3 Nf5 11. O-O Nd7 12. Qc2 Be7 13. cxd5 cxd5 14. Qc7 Bxg5 15. hxg5 Nb6 16. Qc5 Rc8 17. Qb4 Qa4 18. a3 g6 19. Rfc1 Qxb4 20. axb4 O-O 21. Rc5 a6 22. Rac1 Rxc5 23. bxc5 Rc8 24. Rc3 Nd7 25. Rb3 Rc7 26. Kf1 b6 27. cxb6 Rb7 28. Ke2 Rxb6 29. Kd3 Kf8 30. Rxb6 Nxb6 31. Kc3 Ke7 32. Kb4 Kd7 33. Nb3 Nc4 34. Nc5+ Kc6 35. b3 a5+ 36. Kc3 Na3 37. Na4 Nb5+ 38. Kd3 Na3 39. Kc3 Nb5+ 40. Kd3 Na3 41. Kc3 Nb5+ 1/2-1/2

[Event "45th FIDE Olympiad 2024"]
[Site "Budapest"]
[Date "2024.09.11"]
[Round "1.173"]
[White "Garcia Pantoja, Roberto"]
[Black "Pereira, Sergio"]
[Result "1-0"]
[ECO "B45"]
[WhiteElo "2550"]
[BlackElo "1988"]
[Annotator "TA"]
[PlyCount "63"]
[EventDate "2024.09.05"]
[EventType "team-tourn"]
[EventCountry "HUN"]
[SourceTitle "playchess.com"]
[Source "ChessBase"]
[SourceQuality "1"]
[WhiteTeam "Colombia"]
[BlackTeam "Sao Tome and Principe"]
[WhiteTeamCountry "COL"]
[BlackTeamCountry "SAO"]
[TimeControl "40/5400+30:1800+30"]

{[%evp 12,63,16,8,15,21,16,-10,13,-37,-35,-30,-36,-72,-83,-79,-71,-75,0,0,0,0,0,0,95,81,111,0,0,0,0,0,209,228,358,281,666,652,1097,1109,1181,1104,2334,2153,29979,29980,29980,29981,29981,29982,29982,29983,29992,29993]} 1. e4 c5 2. Nf3 e6 3. d4 cxd4 4. Nxd4 Nf6 5. Nc3 Nc6 6. a3 d6 7. Be3 Be7 8. Be2 O-O 9. f4 a6 {The position is equal.} 10. g4 ({White should try} 10. Qd2 $11) 10... Nxd4 $1 $15 11. Qxd4 {[#]} e5 $1 12. fxe5 (12. Qd1 Qa5) 12... Nxg4 13. Bxg4 Bxg4 14. Rg1 h5 (14... Bh4+ $17 15. Bf2 f5 16. exf6 Bxf2+ 17. Qxf2 Rxf6 (17... Qxf6 $2 18. Qxf6 Rxf6 19. Rxg4 $18)) 15. h3 $1 $11 Bh4+ $1 (15... Bxh3 16. O-O-O (16. exd6 Bh4+ 17. Kd2 Bg4 $14) 16... Bg4 (16... dxe5 $2 17. Qxe5 Bg4 18. Rxg4 $18) 17. exd6 Bxd6 (17... Bf6 $2 18. e5 $18) 18. Qxd6 $16) 16. Bf2 Bxh3 {And now ...Bxf2+ would win. This pair of bishops is nice.} 17. O-O-O $1 $36 {[%mdl 2048] Black must now prevent Bxh4. White has good play.} Bg5+ (17... Bxf2 $1 $11 18. Qxf2 Bg4) 18. Kb1 $16 {White is more active.} Bg4 {[#]} 19. Rxg4 $1 {[%mdl 512]} hxg4 $11 20. exd6 Qf6 {aiming for ...Qxd4.} 21. e5 Qf4 (21... Qf5 $11) 22. Ne4 $18 Rfd8 (22... Qf5 $142) 23. Rg1 {Nxg5 is the strong threat.} Kf8 $2 (23... Rac8 24. Nxg5 Qxg5 25. Rxg4 (25. Qxg4 Qxg4 26. Rxg4 Rd7 $11) 25... Qf5) 24. Nxg5 Qxg5 25. Rxg4 {Black is weak on the dark squares} ({Inferior is} 25. Qxg4 Qxg4 26. Rxg4 Rd7 $11) 25... Qf5 26. Bh4 Rd7 {[#]} 27. e6 $1 {[%mdl 512]} fxe6 (27... f6 28. exd7) 28. Be7+ {White mates.} Rxe7 29. dxe7+ Ke8 30. Rxg7 Qf1+ 31. Ka2 Rc8 32. Rg8+ {Weighted Error Value: White=0.20 (precise) /Black=0.78.  Loses game:     	---       	Black=1      Mistake:       	White=2     	Black=4      Inaccurate:     	White=2     	Black=2      OK:         	White=1     	Black=3      Best:        	White=6     	---        Strong:       	White=2     	Black=2      Brilliant:      	---       	Black=1} 1-0

[Event "45th FIDE Olympiad 2024"]
[Site "Budapest"]
[Date "2024.09.11"]
[Round "1.174"]
[White "Nascimento, Admilton De Ceita Do"]
[Black "Cardoso Cardoso, Jose Gabriel"]
[Result "0-1"]
[ECO "D00"]
[WhiteElo "1908"]
[BlackElo "2508"]
[Annotator "TA"]
[PlyCount "96"]
[EventDate "2024.09.05"]
[EventType "team-tourn"]
[EventCountry "HUN"]
[SourceTitle "playchess.com"]
[Source "ChessBase"]
[SourceQuality "1"]
[WhiteTeam "Sao Tome and Principe"]
[BlackTeam "Colombia"]
[WhiteTeamCountry "SAO"]
[BlackTeamCountry "COL"]
[TimeControl "40/5400+30:1800+30"]

{[%evp 9,96,-2,0,0,-4,0,0,-27,-9,-17,-12,-30,-30,-27,-26,-87,0,-223,-223,-220,-200,-255,-245,-259,-265,-298,-295,-303,-286,-435,-347,-344,-339,-329,-348,-478,-439,-546,-527,-497,-531,-538,-529,-741,-776,-1147,-1049,-1133,-1121,-1091,-796,-1065,-796,-1120,-925,-873,-724,-720,-718,-711,-701,-720,-715,-777,-781,-894,-879,-910,-884,-895,-898,-943,-930,-972,-975,-991,-980,-964,-951,-918,-903,-947,-800,-6149,-6149,-5920,-5647,-1509,-1375]} 1. d4 Nf6 2. Bf4 d5 3. e3 c5 4. c3 Nc6 5. Nd2 Bf5 6. Qb3 Qc8 7. Ngf3 c4 8. Qa4 {The position is equal.} a6 9. Qd1 h6 10. h3 e6 11. Be2 b5 12. b4 {[#]} (12. O-O $11 {remains equal.}) 12... Nxb4 {Black is more active.} 13. O-O $2 {White is on the road to losing.} (13. cxb4 $11 Bxb4 14. a3) 13... Nd3 $19 14. a3 Be7 15. Bh2 a5 16. Ne1 O-O 17. Be5 Nxe5 18. dxe5 Nd7 19. f4 (19. Ndf3 $142) 19... b4 20. axb4 axb4 21. Rxa8 Qxa8 22. Nxc4 Qa7 {Black is clearly winning.} ({Much less strong is} 22... bxc3 23. Nd6 Bxd6 24. exd6 $19) 23. Nb2 Qxe3+ 24. Kh2 {White is weak on the dark squares} bxc3 25. Na4 Be4 {Repels Rf3} 26. Bd3 Rc8 27. Qc2 Bh4 28. Bxe4 dxe4 29. Qd1 Bg3+ 30. Kh1 Qd2 31. Nc2 e3 32. Nxe3 Qxd1 33. Rxd1 c2 34. Rc1 Bxf4 35. Rxc2 Ra8 36. Nf1 Rxa4 37. g3 Bxe5 38. Kg2 Nf6 39. Re2 Bc7 40. Rc2 Nd5 41. Kf2 Ra3 42. h4 Bb6+ 43. Kg2 Ne3+ 44. Nxe3 Rxe3 45. Rc8+ Kh7 46. Rb8 {[#]} Rxg3+ $3 47. Kh2 Bc7 48. Rb7 Rc3+ {Weighted Error Value: White=0.88/Black=0.24 (precise) .  Loses game:     	White=1     	---        Mistake:       	White=2     	Black=1      Inaccurate:     	White=4     	---        OK:         	White=5     	Black=12} 0-1

[Event "45th FIDE Olympiad 2024"]
[Site "Budapest"]
[Date "2024.09.11"]
[Round "1.175"]
[White "Avila Pavas, Santiago"]
[Black "Lima, Osvaldo Dos Santos"]
[Result "1-0"]
[ECO "B06"]
[WhiteElo "2485"]
[BlackElo "1903"]
[Annotator "TA"]
[PlyCount "42"]
[EventDate "2024.09.05"]
[EventType "team-tourn"]
[EventCountry "HUN"]
[SourceTitle "playchess.com"]
[Source "ChessBase"]
[SourceQuality "1"]
[WhiteTeam "Colombia"]
[BlackTeam "Sao Tome and Principe"]
[WhiteTeamCountry "COL"]
[BlackTeamCountry "SAO"]
[TimeControl "40/5400+30:1800+30"]

{[%evp 9,42,41,46,35,24,26,31,24,68,27,71,47,58,68,108,112,256,214,220,196,194,188,351,326,501,483,504,177,464,466,441,273,300,296,837]} 1. d4 g6 2. e4 Bg7 3. Nc3 c6 4. Be3 b5 5. Qd2 a5 6. h4 h5 7. Nh3 d6 8. Ng5 {White is slightly better.} Nh6 9. a3 Bb7 10. Be2 Nd7 11. f3 {Wards off Ng4} Nf8 12. O-O {White is much more active.} f5 {[#] Black cannot hold the game after this.} (12... Nd7 $16) 13. Nxb5 $1 {[%cal Od4d5][%mdl 512] Hoping for d5!} Nf7 (13... cxb5 $2 {loses.} 14. Bxb5+ Nd7 15. Ne6 $18) 14. Nxf7 Kxf7 15. Nc3 e5 $2 (15... Bf6 {was necessary.} 16. Bg5 Ne6) 16. dxe5 dxe5 (16... f4 $142 17. Bxf4 dxe5 18. Qxd8 Rxd8) 17. Bc4+ $18 Ne6 18. Na4 $2 {[#]} (18. Qe2 Qe7 19. Bg5 Qc5+ 20. Kh1) 18... Re8 (18... Qxd2 19. Bxd2 Ba6) 19. Qc3 Qxh4 20. Bxe6+ Rxe6 21. Nc5 {[%csl LRb7,LRe6]} Re7 $2 {Weighted Error Value: White=0.56/Black=0.77.  Mistake:       	White=1     	Black=5      Inaccurate:     	White=2     	Black=3      OK:         	White=5     	Black=4      Best:        	White=1     	---} (21... Bc8 22. Rad1 Qf6 23. Nxe6 Bxe6 24. Qxc6 Rh8) 1-0

[Event "45th FIDE Olympiad 2024"]
[Site "Budapest"]
[Date "2024.09.11"]
[Round "1.176"]
[White "Semedo, Adelino"]
[Black "Munoz Triana, Joseph Steve"]
[Result "0-1"]
[ECO "D02"]
[WhiteElo "1827"]
[BlackElo "2270"]
[Annotator "ChessBase"]
[PlyCount "70"]
[EventDate "2024.09.05"]
[EventType "team-tourn"]
[EventCountry "HUN"]
[SourceTitle "playchess.com"]
[Source "ChessBase"]
[SourceQuality "1"]
[WhiteTeam "Sao Tome and Principe"]
[BlackTeam "Colombia"]
[WhiteTeamCountry "SAO"]
[BlackTeamCountry "COL"]
[TimeControl "40/5400+30:1800+30"]

1. d4 Nf6 2. Nf3 e6 3. Bf4 c5 4. c3 Nc6 5. e3 d5 6. Nbd2 Bd6 7. Bg3 O-O 8. Bd3 Re8 9. Ne5 Bxe5 10. dxe5 Nd7 11. f4 c4 12. Be2 Qb6 13. Bf2 Qxb2 14. Qc1 Qxc1+ 15. Rxc1 b5 16. e4 Nb6 17. Rb1 Na4 18. Rxb5 Nxc3 19. Rc5 Nb4 20. exd5 exd5 21. Kf1 Nxe2 22. Kxe2 Nd3 23. Ra5 Nxf4+ 24. Kf3 Nd3 25. Bd4 Nxe5+ 26. Kg3 Nc6 27. Rxd5 Be6 28. Rd6 Red8 29. Rxc6 Rxd4 30. Nf3 Rd3 31. Rb1 Ra3 32. Rb2 h6 33. Kf4 Rd8 34. Nd2 c3 35. Rb3 cxd2 0-1

[Event "45th FIDE Olympiad 2024"]
[Site "Budapest"]
[Date "2024.09.11"]
[Round "1.177"]
[White "Ayyad, Husain"]
[Black "Tin, Jingyao"]
[Result "1/2-1/2"]
[ECO "B15"]
[WhiteElo "2129"]
[BlackElo "2580"]
[Annotator "TA"]
[PlyCount "149"]
[EventDate "2024.09.05"]
[EventType "team-tourn"]
[EventCountry "HUN"]
[SourceTitle "playchess.com"]
[Source "ChessBase"]
[SourceQuality "1"]
[WhiteTeam "Bahrain"]
[BlackTeam "Singapore"]
[WhiteTeamCountry "BHN"]
[BlackTeamCountry "SIN"]
[TimeControl "40/5400+30:1800+30"]

{[%evp 16,149,26,31,32,29,45,42,70,52,62,53,83,4,10,11,18,0,0,0,8,-24,-16,-8,-4,-60,-55,-141,-6,-7,-8,-8,-9,-9,-18,-16,-6,-25,-6,-8,0,0,0,0,0,-12,0,-33,-9,-13,-14,-9,0,0,0,-56,-56,-158,-150,-152,-14,-20,-20,-36,-43,-41,-35,-35,-7,-7,-7,-7,-7,-7,-7,-7,-7,-7,-7,-7,-7,-7,-7,-91,-85,-247,-252,-252,-252,-252,-252,-231,-231,-195,-20,-20,-19,-31,-39,-39,0,-39,-39,-39,-39,-39,-39,-39,-39,-158,0,-38,-35,-35,-38,-38,-38,-38,-38,-38,-38,-38,-8,-38,0,0,0,0,0,0,0,0,0,0,0,0]} 1. e4 c6 2. d4 d5 3. Nd2 dxe4 4. Nxe4 Nf6 5. Nxf6+ exf6 6. Be3 Bd6 7. Bd3 O-O 8. c3 Re8 9. Qc2 h5 10. Ne2 Na6 11. O-O h4 {White is slightly better.} 12. h3 Nc7 13. c4 {Repels Nd5} Bd7 14. c5 ({White should try} 14. Nc3 $16) 14... Bf8 $11 15. Nc3 (15. Nf4 {keeps more tension.} Ne6 16. Bh7+ Kh8 17. Nxe6 Bxe6 18. Qe4) 15... g6 16. Rfe1 (16. Qb3 {is more complex.} b5 17. cxb6 axb6 18. Rfd1) 16... Be6 17. Rad1 Nd5 18. Nxd5 Bxd5 19. b4 b5 20. Bf4 (20. a4 $11 a6 21. Bf4) 20... a5 21. a4 (21. Rxe8 $15 Qxe8 22. a3) 21... bxa4 (21... axb4 $2 22. axb5 Rxe1+ 23. Rxe1) (21... Rxe1+ $17 22. Rxe1 axb4 23. axb5 b3) 22. Qxa4 axb4 23. Qxb4 Qd7 24. Rxe8 Rxe8 25. Re1 Rd8 {[%cal Od5g2]} 26. Be3 Be6 27. Be2 Bg7 28. d5 Bxd5 29. Qxh4 Re8 $40 {[%mdl 128] Black is up to no good.} 30. Rb1 f5 31. Bf1 Be4 32. Rc1 Bb2 33. Re1 Qd5 34. f3 {[%cal Oe3f2]} Bd3 35. Bxd3 (35. Kh1 $1 $11 Re6 (35... Bxf1 $2 36. Bd4 $18) 36. Qb4) 35... Qxd3 $15 36. Bf2 (36. Bg5 $15 Qd4+ 37. Qxd4 Bxd4+ (37... Rxe1+ 38. Kf2 $17) 38. Kf1 Rxe1+ 39. Kxe1) 36... Rxe1+ $17 37. Bxe1 {[%mdl 4096] Endgame. KQB-KQB} Bd4+ (37... Be5 $17 {And now ...Kg7 would win.} 38. Ba5 Qd1+ 39. Qe1 Qd5) 38. Bf2 $11 Be5 {...Qb1+ is the strong threat.} 39. f4 Bc7 {Threatens to win with ...Qd1+.} 40. Qg3 $1 Qe4 41. Be3 Kf8 {[%cal Og6g5]} 42. Qf2 Ba5 43. Qe2 Bb4 44. Kf2 Qd5 45. Qc2 Ke7 46. Kf1 Kd7 47. Kf2 Kc7 48. Kg3 Kc8 49. h4 (49. Kh2 $11 {keeps the balance.}) 49... Be1+ $1 $17 50. Bf2 $2 (50. Kh3 $17) 50... Qd2 $19 51. Qxd2 Bxd2 {KB-KB} 52. Kf3 Kd7 53. g4 {[#]} Ke6 54. Kg3 fxg4 $2 (54... Bc3 $19 {White must now prevent ...Ba5.} 55. Kh3 Bg7) 55. Kxg4 $11 Bc3 56. Bg1 Bf6 57. Bf2 Bc3 (57... Bd8 $5 58. f5+ $8 gxf5+ 59. Kf4 Bc7+ 60. Kg5 Ba5 $17) 58. Bg1 Ba5 {Hoping for ...Bd8.} 59. Bf2 Bd8 {( -> ...f5+)} 60. f5+ $1 gxf5+ 61. Kf4 Bc7+ 62. Kg5 {[#]} (62. Kf3 $15) 62... Bd8+ (62... Ba5 $1 $17 {[%cal Ra5d2]} 63. Kf4 Bd2+ 64. Be3 Be1 (64... Bxe3+ 65. Kxe3 Ke5 66. h5 $11)) 63. Kf4 $15 Kf6 64. Bd4+ Kg6 65. h5+ Kxh5 66. Kxf5 Be7 67. Be3 Kh4 68. Bf4 Kh3 69. Bg5 (69. Be3 Kg2 $15) 69... Bxg5 70. Kxg5 {KPP-KP. The position is equal.} Kg3 71. Kf5 $1 (71. Kf6 {gets mated.} Kf4 72. Ke7 Ke5 (72... f5 73. Kd7 $11) 73. Kxf7 Kd5 74. Kf6 Kxc5 75. Ke5 Kc4 76. Kf4 Kd3 77. Kf3 c5 78. Kf2 Kd2 79. Kg3 c4 80. Kg4 c3 81. Kf5 c2 82. Ke6 Kd3 (82... c1=B 83. Kf7 $11) 83. Kf7 c1=Q (83... c1=B 84. Kg8 $11) 84. Ke6 Qc6+ 85. Kf5 Qd6 86. Kg4 Qf6 87. Kg3 Ke3 88. Kh2 Qg7 89. Kh3 Kf3 90. Kh4 Qh6#) 71... Kf3 72. Ke5 $1 (72. Kf6 {leads to mate.} Ke4 73. Kxf7 Kd5 74. Kf6 Kxc5 75. Ke5 Kc4 76. Kf4 c5 77. Kg3 Kd4 78. Kf3 c4 79. Kf2 Ke4 80. Kf1 Ke3 81. Ke1 c3 82. Kd1 Kd3 83. Kc1 c2 84. Kb2 Kd2 85. Ka3 c1=Q+ (85... c1=B+ 86. Kb4 $11) 86. Kb4 Qc6 87. Ka5 Kd3 88. Kb4 Qb6+ 89. Ka3 Kc3 90. Ka4 Qb4#) 72... Ke3 (72... Kf2 $5) 73. Kd6 f5 74. Kxc6 f4 75. Kd6 {Black had all chances to win.   Weighted Error Value: White=0.20 (precise) /Black=0.19 (very precise) .  Loses game:     	White=1     	---        Missed win:     	---       	Black=1      Mistake:       	White=7     	Black=3      Inaccurate:     	White=3     	Black=5      OK:         	White=24    	Black=24     Best:        	White=6     	Black=4      Strong:       	White=4     	Black=1} 1/2-1/2